Cogmind - Beta 15 @@@ ROGUE MODE // 2025.08.16 @ 09:56:19 Player: snuffles Result: Self-destructed Performance ------------- Evolutions (1) 500 Regions Visited (3) 600 Robots Destroyed (15) 75 Value Destroyed (295) 295 Prototype IDs (4) 80 Alien Tech Used (0) 0 Bonus (0) 0 TOTAL SCORE: 1550 Bonus ------- None Cogmind --------- Core Integrity 211/400 Matter 300/300 Energy 100/100 System Corruption 0% Temperature Cool (0) Movement Rolling (90) Location -9/Storage Parts ------- > --- POWER (1) -------- (None) > --- PROPULSION (3) --- Armored Wheel Armored Wheel Armored Wheel > --- UTILITY (3) ------ Small Storage Unit Structural Scanner > --- WEAPON (2) ------- Hammer > --- INVENTORY (8) ---- Light Ion Engine Light Nuclear Core Armored Wheel Structural Scanner Sensor Array Light Assault Rifle Mining Laser Peak State ------------ > --- POWER ------------ Ion Engine > --- PROPULSION ------- Armored Wheel Armored Wheel Armored Wheel > --- UTILITY ---------- Small Storage Unit Structural Scanner > --- WEAPON ----------- Hammer Hammer > --- INVENTORY -------- Light Ion Engine Structural Scanner Sensor Array Light Assault Rifle Mining Laser [Rating: 11] Favorites ----------- Power Ion Engine Engine Ion Engine Propulsion Aluminum Leg Leg Aluminum Leg Wheel Armored Wheel Utility Small Storage Unit Device Structural Scanner Storage Small Storage Unit Weapon Hammer Ballistic Gun Light Assault Rifle Impact Weapon Hammer Build | -11 -10 -9 -9 ------- Run | Yrd Mat Mat Sto Slots Evolved 2 | . . 2 . Power . | . . . . Propulsion 1 | . . 1 . Utility 1 | . . 1 . Weapon . | . . . . Parts Attached 16 | 6 7 3 . Power 3 | 1 2 . . Engine 3 | 1 2 . . Core . | . . . . Reactor . | . . . . Propulsion 7 | 2 2 3 . Treads . | . . . . Leg 4 | 2 2 . . Wheel 3 | . . 3 . Hover . | . . . . Flight . | . . . . Utility 2 | 1 1 . . Device 1 | . 1 . . Storage 1 | 1 . . . Processor . | . . . . Hackware . | . . . . Protection . | . . . . Artifact . | . . . . Weapon 4 | 2 2 . . Energy Gun . | . . . . Energy Cannon . | . . . . Ballistic Gun 2 | 2 . . . Ballistic Cannon . | . . . . Launcher . | . . . . Special Weapon . | . . . . Impact Weapon 2 | . 2 . . Slashing Weapon . | . . . . Piercing Weapon . | . . . . Special Melee Weapon . | . . . . Unidentified Prototypes . | . . . . Parts Lost 4 | . 2 2 . Power 2 | . 1 1 . Propulsion 1 | . 1 . . Utility . | . . . . Weapon 1 | . . 1 . Highest Loss Streak 2 | . 2 2 . To Critical Strikes . | . . . . Average Backups 5 | 1 5 6 7 Power 1 | . 1 1 2 Propulsion 1 | . 1 . 1 Utility 1 | . 1 2 2 Weapon 1 | . 1 2 2 Tool/Special . | . . . . Unused Backups 9 | . 2 1 6 Power 2 | . . . 2 Propulsion 2 | . . 1 1 Utility 2 | . . . 2 Weapon 3 | . 2 . 1 Tool/Special . | . . . . Average Slot Usage (%) 92 | . 98 85 66 Engine 11 | . 14 9 . Leg 18 | . 27 3 . Wheel 10 | . . 29 33 Device 12 | . 13 11 11 Storage 12 | . 14 11 11 Ballistic Gun 5 | . 8 . . Impact Weapon 18 | . 18 21 11 Peak Build Rating 11 | 6 7 11 10 Average Rating 7 | 4 6 10 10 On Entrance 5 | . 6 7 10 Naked Turns . | . . . . Heaviest Build 15 | 12 15 15 8 Greatest Support 36 | 20 20 36 36 Greatest Overweight (x) 3 | 3 . 1 . Average Overweight (x) . | . . . . Largest Inventory Capacity 8 | 8 8 8 8 Average Capacity 7 | 7 8 8 8 Most Carried 8 | 2 8 7 7 Average Carried 5 | 1 5 6 7 Final Capacity 8 | 8 8 8 8 Final Carried 7 | 2 6 7 7 Class Distribution -------------------- 100% | Mutant Dominant Class ---------------- Mutant | -10/Materials Mutant | -9/Materials Mutant | -9/Storage Resources | -11 -10 -9 -9 ----------- Run | Yrd Mat Mat Sto Matter Collected 418 | 241 137 40 . Remotely . | . . . . Salvage Created 360 | . 234 126 . Parts 18 | . 16 2 . Haulers Intercepted . | . . . . Recyclers Shooed . | . . . . Parts Field Recycled . | . . . . Retrieved Matter . | . . . . Parts Self-Destructed . | . . . . Prevented . | . . . . Kills | -11 -10 -9 -9 ------- Run | Yrd Mat Mat Sto Combat Hostiles Destroyed 13 | . 10 3 . Melee 6 | . 5 1 . Guns 4 | . 4 . . Classes Destroyed 4 | . 4 . . Operator 1 | . 1 . . Watcher 1 | . 1 . . Swarmer 8 | . 8 . . Grunt 5 | . 2 3 . Best Kill Streak 4 | . 4 1 . Combat Bots Only 3 | . 3 1 . Max Kills in Single Turn 1 | . 1 1 . Gunslinging . | . . . . Exploded . | . . . . Melee 1 | . 1 1 . Uniques/NPCs Destroyed . | . . . . Combat | -11 -10 -9 -9 -------- Run | Yrd Mat Mat Sto Hostile Shots Fired 106 | . 46 44 16 Missed 19 | . 7 6 6 Hits 87 | . 39 38 10 Projectile 87 | . 39 38 10 Damage Taken 889 | . 332 470 87 Core 266 | . 77 151 38 Absorbed by Shields . | . . . . Core Remaining (%) 84 | 100 69 . . Volleys Fired 16 | . 16 . . Largest 2 | . 2 . . Hottest 40 | . 40 . . Shots Fired 32 | . 32 . . Gun 32 | . 32 . . Cannon . | . . . . Launcher . | . . . . Special . | . . . . Kinetic 32 | . 32 . . Thermal . | . . . . Explosive . | . . . . Electromagnetic . | . . . . Robot Hit Streak 19 | . 19 . . Robot Miss Streak 3 | . 3 . . Penetration Max . | . . . . Secondary Targets . | . . . . Shots Hit Robots 49 | . 38 11 . Core Hits 18 | . 16 1 1 Critical Kills 3 | . 2 1 . Critical Parts Destroyed 4 | . 2 2 . Critical Strikes 7 | . 4 3 . Smash 7 | . 4 3 . Melee Attacks 38 | . 23 15 . Impact 38 | . 23 15 . Slashing . | . . . . Piercing . | . . . . Sneak Attacks . | . . . . Combat Hostiles . | . . . . Follow-up Attacks 6 | . 4 2 . Damage Inflicted 778 | . 504 255 19 Guns 166 | . 166 . . Cannons . | . . . . Explosions . | . . . . Melee 583 | . 328 255 . Ramming 29 | . 10 . 19 Kinetic 166 | . 166 . . Thermal . | . . . . Explosive . | . . . . Electromagnetic . | . . . . Impact 583 | . 328 255 . Slashing . | . . . . Piercing . | . . . . Highest Corruption . | . . . . Average Corruption . | . . . . Corruption Purged . | . . . . Corruption Blocked . | . . . . Overload Shots . | . . . . Overflow Damage 111 | . 49 62 . Projectiles . | . . . . Explosions . | . . . . Melee 111 | . 49 62 . Knockbacks 4 | . 1 3 . Impact 4 | . 1 3 . Kinetic . | . . . . Secondary . | . . . . Self-Inflicted Damage 8 | . . . 8 Shots . | . . . . Rammed 8 | . . . 8 Targets Rammed 12 | . 4 . 8 Kicked 4 | . 4 . . Crushed . | . . . . Highest Temperature 12 | . 12 . . Average Temperature 7 | . 7 . . Received Heat Transfer 306 | . 48 258 . Siege Activations . | . . . . Martial Activations . | . . . . Shielding Activations . | . . . . Robots Disrupted . | . . . . Combat Hostiles . | . . . . Robots Corrupted 4 | . 2 2 . Combat Hostiles 3 | . 1 2 . Parts Fried 5 | . 5 . . Impact Corruptions 5 | . 3 2 . Robots Melted . | . . . . Combat Hostiles . | . . . . Parts Melted . | . . . . Heat Transferred . | . . . . Parts Sabotaged . | . . . . Parts Stolen . | . . . . Parts Stripped . | . . . . Power Chain Reactions . | . . . . Alert | -11 -10 -9 -9 ------- Run | Yrd Mat Mat Sto Maximum Alert Level . | . . . . Low Security (%) 100 | 100 100 100 100 Level 1 . | . . . . Level 2 . | . . . . Level 3 . | . . . . Level 4 . | . . . . Level 5 . | . . . . High Security . | . . . . Max Security . | . . . . Peak Influence 86 | . 86 35 15 Initial 22 | . . 22 1 Average 26 | . 36 12 2 Influence Increases 376 | . 274 87 15 Destroy 0b10 Robot/C 260 | . 200 60 . Destroy 0b10 Robot/NC 10 | . 10 . . Destroy Leader 42 | . 32 10 . Successful Hack 19 | . 17 2 . Partial Spotted 15 | . . . 15 Lose Combat Pursuer 30 | . 15 15 . Influence Decreases 376 | . 220 136 20 Entered New Map 36 | . . 32 4 Time Decay 300 | . 200 84 16 Lost Part 40 | . 20 20 . Squads Dispatched 1 | . . 1 . Investigation . | . . . . Extermination . | . . . . Reinforcement 1 | . . 1 . Assault . | . . . . Garrison . | . . . . Intercept . | . . . . Searches Triggered . | . . . . Construction Impeded . | . . . . Haulers Reinforced . | . . . . Active Scanning Responses . | . . . . Cargo Convoy Interrupts . | . . . . Stealth | -11 -10 -9 -9 --------- Run | Yrd Mat Mat Sto Distress Signals 1 | . 1 . . Communications Jammed . | . . . . Distress Signals . | . . . . Times Spotted 30 | . 17 10 3 Peak Tracking Total 6 | . 5 6 4 Tactical Retreats 2 | . 1 1 . Traps | -11 -10 -9 -9 ------- Run | Yrd Mat Mat Sto Traps Triggered 1 | . 1 . . Indirectly . | . . . . Trap Hack Attempts . | . . . . Triggered . | . . . . Disarmed . | . . . . Reprogrammed . | . . . . Reused . | . . . . Traps Extracted . | . . . . Installed . | . . . . Triggered . | . . . . Machines | -11 -10 -9 -9 ---------- Run | Yrd Mat Mat Sto Machines Disabled . | . . . . Max in Single Turn . | . . . . Machines Repaired . | . . . . Machines Dismantled . | . . . . Machines Sabotaged . | . . . . Overloaded Fab Kills . | . . . . Hacking | -11 -10 -9 -9 --------- Run | Yrd Mat Mat Sto Machines Accessed 5 | . 4 1 . Terminals 5 | . 4 1 . Fabricators . | . . . . Repair Stations . | . . . . Recycling Units . | . . . . Scanalyzers . | . . . . Garrison Access . | . . . . Total Hacks 12 | . 10 2 . Successful 8 | . 7 1 . Failed 4 | . 3 1 . Catastrophic 1 | . . 1 . Database Lockouts . | . . . . Manual . | . . . . Terminals 12 | . 10 2 . Fabricators . | . . . . Repair Stations . | . . . . Recycling Units . | . . . . Scanalyzers . | . . . . Garrison Access . | . . . . Terminal Hacks 8 | . 7 1 . Record 1 | . . 1 . Prototype ID Bank 2 | . 2 . . Emergency Access Points 1 | . 1 . . Dispatch Records 1 | . 1 . . Recall Reinforcements 1 | . 1 . . Zone Layout 2 | . 2 . . Fabricator Hacks . | . . . . Repair Station Hacks . | . . . . Recycling Unit Hacks . | . . . . Scanalyzer . | . . . . Garrison Access Hacks . | . . . . Unauthorized Hacks . | . . . . Terminals . | . . . . Fabricators . | . . . . Repair Stations . | . . . . Recycling Units . | . . . . Scanalyzers . | . . . . Garrison Access . | . . . . Data Cores Recovered 1 | . 1 . . Used . | . . . . Hacking Detections 4 | . 3 1 . Full Trace Events . | . . . . Feedback Events . | . . . . Feedback Blocked . | . . . . Robot Schematics Acquired . | . . . . Robots Built . | . . . . Authchips . | . . . . Time . | . . . . Total Robot Build Rating . | . . . . Part Schematics Acquired . | . . . . Parts Built . | . . . . Authchips . | . . . . Time . | . . . . Total Part Build Rating . | . . . . Parts Repaired . | . . . . Time . | . . . . Parts Recycled . | . . . . Recycled Matter . | . . . . Retrieved Matter . | . . . . Retrieved Components . | . . . . Parts Scanalyzed . | . . . . Part Schematics Acquired . | . . . . Parts Damaged . | . . . . Bothacking | -11 -10 -9 -9 ------------ Run | Yrd Mat Mat Sto Used RIF Installer . | . . . . Robots Hacked . | . . . . Non-combat . | . . . . Combat . | . . . . Robot Hacks Applied . | . . . . Relay Couplers Released . | . . . . Fabnet Peak Effective % . | . . . . Robots Rewired . | . . . . Allies Hacked . | . . . . Hacks Repelled . | . . . . Allies | -11 -10 -9 -9 -------- Run | Yrd Mat Mat Sto Total Allies . | . . . . Largest Group . | . . . . Highest-Rated Group . | . . . . Highest-Rated Ally . | . . . . Total Orders . | . . . . Ally Attacks . | . . . . Total Damage . | . . . . Kills . | . . . . Allies Corrupted . | . . . . Allies Melted . | . . . . Intel | -11 -10 -9 -9 ------- Run | Yrd Mat Mat Sto Active Infowar (turns) 779 | . 507 214 58 Structural 779 | . 507 214 58 Robot Analysis Total . | . . . . Derelict Logs Recovered . | . . . . Drone Launches . | . . . . Drone Recoveries . | . . . . Exploration | -11 -10 -9 -9 ------------- Run | Yrd Mat Mat Sto Turns Passed 849 | 51 523 214 61 Spaces Moved 567 | 34 325 155 53 Core 12 | 12 . . . Treads . | . . . . Legs 354 | 22 325 7 . Wheels 201 | . . 148 53 Hover . | . . . . Flight . | . . . . Fastest Speed 50 | 50 120 90 90 Average Speed 109 | 120 120 91 90 Slowest Speed 200 | 200 120 120 90 Overloaded Moves . | . . . . Propulsion Burnouts . | . . . . Robots Hopped . | . . . . Potential Cave-ins . | . . . . Cave-ins Triggered . | . . . . Exploration Rate (%) 23 | 4 61 15 12 Regions Visited 3 Branch Regions 1 Pre-discovered Areas . | . . . . Known Exits Taken . | . . . . Unknown Exits Taken 3 | 1 1 1 . Scrap Searched . | . . . . Spaces Dug . | . . . . Terrain Destroyed . | . . . . Melee . | . . . . Projectile . | . . . . AOE . | . . . . Terrain Rammed . | . . . . Walls Destroyed . | . . . . Machines Disabled . | . . . . Actions | -11 -10 -9 -9 --------- Run | Yrd Mat Mat Sto Total 704 | 41 395 202 66 Wait 43 | . 11 27 5 Move 564 | 33 324 154 53 Hop . | . . . . Pick Up 14 | 2 9 3 . Fast Attach 10 | 6 4 . . Attach 3 | . 2 1 . Detach . | . . . . Swap 7 | . 4 3 . Drop 4 | . 3 1 . Fire 16 | . 16 . . Melee 31 | . 18 13 . Ram 8 | . . . 8 Kick 4 | . 4 . . Crush . | . . . . Escape Stasis . | . . . . Rewire . | . . . . Trap . | . . . . Miscellaneous . | . . . . Route ------- -11/Scrapyard -10/Materials (discovered 3 exits: *Mat x2 / [Sub]) -9/Materials -9/Storage History --------- Turn | Location | Event 24 | -11/Scrapyard | Discovered new exit (range 14) 52 | -11/Scrapyard | Entered Materials 69 | -10/Materials | Discovered new exit (range 3) 109 | -10/Materials | Discovered new exit (range 14) 332 | -10/Materials | Build established: Mutant 354 | -10/Materials | Discovered new exit (range 4) 575 | -10/Materials | Entered another Materials area 575 | -9/Materials | Evolved 2 slots: Propulsion x1, Utility x1 775 | -9/Materials | Discovered new exit (range 15) 789 | -9/Materials | Entered Storage 850 | -9/Storage | Self-destructed Last Messages --------------- 00750_ G-47 Trooper knocked back. 00758_ Hammer follow-up attack on G-47 Trooper. 00758_ G-47 Trooper suffers critical hit (Smash). 00758_ G-47 Trooper destroyed. 00759_ Ion Engine destroyed. 00762_ Acquired Lgt. Nuclear Core. 00763_ Hammer destroyed. 00775_ EXIT=FOUND LOCATION=UNKNOWN GOAL=ESCAPE 00808_ K-01 Serf collects debris. 00842_ Slammed into S-10 Pest. 00842_ Arm. Wheel broken. 00842_ Destabilizing: Short circuit. 00843_ Slammed into S-10 Pest. 00845_ O-16 Technician: "IFF HANDSHAKE FAILED. SECURING TERMINAL." 00846_ Slammed into S-10 Pest. 00847_ Destabilizing: System interference. 00847_ Structural Scanner temporarily disabled. 00848_ Slammed into S-10 Pest. Map ----- +----------------------------------------------------+ | ?????????????????????????????????????????? | | ?????????????????????????????????????????? | | ?????????????????????????????????????????? | | ???##############????????????????????????? | | ???##############????????????????????????? | | ???## ##????????????????????????? | | ???## ##????????????????????????? | | ???## ##????????????????????????? | | ???######### #########?????????????????? | | ???######### #########?????????????????? | | ??????????## # ##?????????????????? | | ??????????## # ##?????????????????? | | ??????????## # ##?????????????????? | | ??????????## # ##?????????????????? | | ??????????## # ##?????????????????? | | ??????????## # ##?????????????????? | | ??????????## # ##?????????????????? | | ??????????## + ##?????????????????? | | ??????????## # ##?????????????????? | | ??????????## # ##?????????????????? | | ??????????##+# # k ##?????????????????? | | ?????????? # # ##?????????????????? | | ????????"" # # ## ?????????? | | ?????? """ # ###/######+##+###?????????? | | ????? """ # % s ????????? | | ?????? """ + % @ ????????? | | ?????? """ #% ????????? | | ?????? # % ########+##+##??????????? | | ??????? % # s# # ??????????? | | ?????? + s+ # ????????????????? | | ??????#### ##### # # ????????????????? | | ??????########## # # ????????????????? | | ????????####??## # """ # ????????????????? | | ??????????????## # """ # ????????????????? | | ??????????????## # """ # ????????????????? | | ?????????????? ####### ????????????????? | | ??????????????? ########????????????????? | | ??????????????? ##??????????????????????? | | ??????????????? ##??????????????????????? | | ??????????????" ##??????????????????????? | | ??????????????" ##??????????????????????? | | ?????????????? ##??????????????????????? | | ?????????????? ????????????????????????? | | ??????????????" ????????????????????????? | | ??????????????" ????????????????????????? | | ??????????????" ????????????????????????? | | ??????????????? ????????????????????????? | | ??????????????? ????????????????????????? | | ?????????????????????????????????????????? | | ?????????????????????????????????????????? | +----------------------------------------------------+ Best States ------------- Heat Dissipation 28 Energy Generation 10 Energy Capacity 250 Matter Stores 300 Matter Capacity 300 Sight Range 16 Terrain Scan Density 10 Evasion (%) 55 Item Schematics ----------------- None Robot Schematics ------------------ None Fabricated ------------ Nothing Repaired ---------- Nothing Alien Tech Used ----------------- None Achievements -------------- None Challenges ------------ None Game ------ Seed BackupHackingMembrane Manual? 0 Play Time 00:21:39 Cumulative 10.4 hours Start 2025.08.16 @ 09:33:59 End 2025.08.16 @ 09:56:19 Sessions 1 Manual Loads 0 Difficulty Rogue Special Mode None Game No. 13 Rogue 13 Adventurer 0 Explorer 0 Win Type - Total 0 Types 0/0/0/0/0/0/0/0/0/0 Lore% 8 Gallery% 8 Achievement% 10 Wizard Run 0 Options --------- Layout 0 ASCII 0 Keyboard 0 Movement Numpad Keybinds 0 Fullscreen 1 Font 18/SmallcapsGlow Map View 76x50 Zoom Use 0% Tactical HUD 1 Map Filters NONE Filters NONE Steam 1 RUN: 33c4f469-27a8-46b6-8498-e14b5c044a57